[Event "Schachfestival Open-A 2018"]
[Site "Lueneburg"]
[Date "2018.07.07"]
[Round "3"]
[White "Utiatskaja, Irina"]
[Black "Sebastian, Dirk"]
[Result "1/2-1/2"]
[ECO "B09"]
[WhiteElo "2155"]
[BlackElo "2447"]
[Annotator "NA"]
[PlyCount "88"]
[EventDate "2018.07.06"]
[EventType "swiss"]
[EventCountry "GER"]
[SourceTitle "playchess.com"]
[Source "ChessBase"]
[SourceQuality "1"]
[TimeControl "40/5400+30:1800+30"]

1. e4 {[%emt 0:00:00]} d6 {[%emt 0:00:20]} 2. d4 {[%emt 0:00:00]} Nf6 {[%emt 0:00:05]} 3. Nc3 {[%emt 0:00:02]} g6 {[%emt 0:00:05]} 4. f4 {[%emt 0:01:34]} Bg7 {[%emt 0:00:43]} 5. Nf3 $11 {[%emt 0:00:06]} c5 {[%emt 0:00:14]} 6. dxc5 {[%emt 0:00:57]} Qa5 {[%emt 0:00:08]} 7. Qd4 {[%emt 0:01:41]} O-O {[%emt 0:28:08]} 8. Bd2 {[%emt 0:03:11]} Nc6 {[%emt 0:01:58]} 9. Qc4 {[%emt 0:12:26]} Qxc5 {[%emt 0:05:10]} 10. Qxc5 {[%emt 0:01:50]} dxc5 {[%emt 0:00:02]} 11. e5 {[%emt 0:01:24]} Ne8 {[%emt 0:08:46]} 12. Be3 {[%emt 0:09:18]} Nc7 {[%emt 0:12:33]} 13. Bxc5 {[%emt 0:02:59]} f6 {[%emt 0:00:51]} 14. exf6 {[%emt 0:06:09]} Bxf6 {[%emt 0:00:05]} 15. g3 {[%emt 0:02:06]} Bg4 {[%emt 0:03:38]} 16. Bc4+ {[%emt 0:06:25]} Kg7 {[%emt 0:00:50]} 17. O-O {[%emt 0:05:10]} Rac8 {[%emt 0:03:45]} 18. Ne5 {[%emt 0:10:54]} Nxe5 {[%emt 0:11:09]} 19. fxe5 {[%emt 0:00:05]} Bxe5 {[%emt 0:00:12]} 20. Bxe7 {[%emt 0:03:53]} Rxf1+ {[%emt 0:01:16]} 21. Rxf1 {[%emt 0:00:23]} Be6 {[%emt 0:02:47]} 22. Bxe6 {[%emt 0:02:37]} Nxe6 {[%emt 0:00:02]} 23. Kg2 {[%emt 0:08:28]} Rc7 {[%emt 0:04:24]} 24. Bb4 {[%emt 0:03:58]} Nd4 {[%emt 0:04:53]} 25. Bf8+ {[%emt 0:10:17]} Kg8 {[%emt 0:00:08]} 26. Bh6 {[%emt 0:02:01]} Nf5 {[%emt 0:00:12]} 27. Bd2 {[%emt 0:00:39]} Bxc3 {[%emt 0:03:23]} 28. bxc3 {[%emt 0:00:04]} h5 {[%emt 0:00:07]} 29. Re1 {[%emt 0:00:24]} Kf7 {[%emt 0:00:23]} 30. Re4 {[%emt 0:01:28]} Rc6 {[%emt 0:02:12]} 31. h3 {[%emt 0:01:38]} Nd6 {[%emt 0:00:13]} 32. Rd4 {[%emt 0:01:19]} Ke6 {[%emt 0:00:45]} 33. Bf4 {[%emt 0:00:29]} Nb5 {[%emt 0:01:18]} 34. Rb4 {[%emt 0:01:17]} a6 {[%emt 0:02:57]} 35. c4 {[%emt 0:00:13]} Nd4 {[%emt 0:00:06]} 36. c5 {[%emt 0:01:32]} Nxc2 {[%emt 0:02:12]} 37. Rxb7 {[%emt 0:00:04]} Rxc5 {[%emt 0:00:21]} 38. Rb6+ {[%emt 0:00:15]} Kf5 {[%emt 0:00:21]} 39. Rxa6 {[%emt 0:00:51]} Nb4 {[%emt 0:02:08]} 40. Ra4 {[%emt 0:00:54]} Rc2+ {[%emt 0:00:34]} 41. Kf3 {[%emt 0:03:51]} Rc3+ {[%emt 0:10:27]} 42. Ke2 {[%emt 0:02:52]} Nd5 {[%emt 0:00:47]} 43. Ra5 {[%emt 0:15:01]} Ke4 {[%emt 0:01:07]} 44. Ra4+ {[%emt 0:00:03]} Kf5 {[%emt 0:00:04]} 1/2-1/2

[Event "Schachfestival Open-A 2018"]
[Site "Lueneburg"]
[Date "2018.07.07"]
[Round "3"]
[White "Puschendorf, Steffen"]
[Black "Simantsev, Mikhail"]
[Result "0-1"]
[ECO "A62"]
[WhiteElo "2153"]
[BlackElo "2434"]
[Annotator "NA"]
[PlyCount "66"]
[EventDate "2018.07.06"]
[EventType "swiss"]
[EventCountry "GER"]
[SourceTitle "playchess.com"]
[Source "ChessBase"]
[SourceQuality "1"]
[TimeControl "40/5400+30:1800+30"]

1. d4 {[%emt 0:00:00]} Nf6 {[%emt 0:12:29]} 2. c4 {[%emt 0:00:00]} e6 {[%emt 0:00:19]} 3. g3 {[%emt 0:00:00]} c5 {[%emt 0:00:01]} 4. d5 {[%emt 0:00:08]} exd5 {[%emt 0:00:01]} 5. cxd5 {[%emt 0:00:09]} d6 {[%emt 0:00:01]} 6. Nc3 {[%emt 0:00:13]} g6 {[%emt 0:00:01]} 7. Bg2 {[%emt 0:00:10]} Bg7 {[%emt 0:00:01]} 8. Nf3 {[%emt 0:00:10]} O-O {[%emt 0:00:02]} 9. O-O {[%emt 0:00:10]} Re8 {[%emt 0:00:01]} 10. Bf4 {[%emt 0:01:10]} Na6 {[%emt 0:01:05]} 11. Re1 {[%emt 0:01:07]} Bg4 {[%emt 0:04:50]} 12. h3 {[%emt 0:01:11]} Bxf3 {[%emt 0:00:54]} 13. Bxf3 {[%emt 0:00:02]} Nd7 {[%emt 0:01:50]} 14. e4 {[%emt 0:17:43]} Ne5 {[%emt 0:08:37]} 15. Be2 {[%emt 0:03:17]} Nc7 {[%emt 0:10:43]} 16. a4 {[%emt 0:01:48]} a6 {[%emt 0:02:29]} 17. g4 {[%emt 0:26:45]} Rb8 {[%emt 0:09:04]} 18. Qd2 {[%emt 0:11:16]} b5 {[%emt 0:08:45]} 19. Bg3 {[%emt 0:04:12]} bxa4 {[%emt 0:14:44]} 20. f4 {[%emt 0:03:06]} Nd7 {[%emt 0:01:44]} 21. e5 {[%emt 0:09:47]} dxe5 {[%emt 0:00:57]} 22. f5 {[%emt 0:00:19]} Rb4 {[%emt 0:01:21]} 23. Rxa4 {[%emt 0:04:30]} Rd4 {[%emt 0:03:52]} 24. Qc2 {[%emt 0:01:39]} Nb6 {[%emt 0:00:44]} 25. Ra5 {[%emt 0:01:54]} Nbxd5 {[%emt 0:03:47]} 26. Bf3 {[%emt 0:00:39]} Nb4 {[%emt 0:01:05]} 27. Qg2 {[%emt 0:01:00]} Nd3 {[%emt 0:02:26]} 28. Rf1 {[%emt 0:01:54]} Nf4 {[%emt 0:01:43]} 29. Bxf4 {[%emt 0:00:10]} exf4 {[%emt 0:00:07]} 30. Bc6 {[%emt 0:05:36]} Rd2 {[%emt 0:01:28]} 31. Qf3 {[%emt 0:00:14]} Bd4+ {[%emt 0:00:08]} 32. Kh1 {[%emt 0:00:05]} Re3 {[%emt 0:00:09]} 33. fxg6 {[%emt 0:02:03]} hxg6 {[%emt 0:00:21]} 0-1

[Event "Schachfestival Open-A 2018"]
[Site "Lueneburg"]
[Date "2018.07.07"]
[Round "3"]
[White "Bogachkova, Alena"]
[Black "Sriram, Jha"]
[Result "0-1"]
[ECO "C24"]
[WhiteElo "2135"]
[BlackElo "2409"]
[Annotator "NA"]
[PlyCount "86"]
[EventDate "2018.07.06"]
[EventType "swiss"]
[EventCountry "GER"]
[SourceTitle "playchess.com"]
[Source "ChessBase"]
[SourceQuality "1"]
[TimeControl "40/5400+30:1800+30"]

1. e4 {[%emt 0:00:00]} e5 {[%emt 0:04:17]} 2. Bc4 {[%emt 0:00:00]} Nf6 {[%emt 0:00:16]} 3. d3 {[%emt 0:00:00]} Nc6 {[%emt 0:00:42]} 4. Nc3 {[%emt 0:01:59]} Na5 {[%emt 0:01:58]} 5. Bb3 {[%emt 0:00:16]} Be7 {[%emt 0:04:53]} 6. f4 {[%emt 0:04:07]} Nxb3 {[%emt 0:01:13]} 7. axb3 {[%emt 0:00:07]} d6 {[%emt 0:01:11]} 8. Nf3 {[%emt 0:00:49]} exf4 {[%emt 0:01:42]} 9. Bxf4 {[%emt 0:00:22]} O-O {[%emt 0:02:49]} 10. O-O {[%emt 0:01:03]} Bg4 {[%emt 0:01:17]} 11. h3 {[%emt 0:09:38]} Bh5 {[%emt 0:00:24]} 12. Qe1 {[%emt 0:04:35]} Re8 {[%emt 0:09:43]} 13. Qf2 {[%emt 0:00:20]} a6 {[%emt 0:00:34]} 14. Rae1 {[%emt 0:08:22]} Nd7 {[%emt 0:03:49]} 15. Nd4 {[%emt 0:11:17]} Bg6 {[%emt 0:03:33]} 16. Nd5 {[%emt 0:05:52]} Bf8 {[%emt 0:00:40]} 17. Bg3 {[%emt 0:04:32]} f6 {[%emt 0:00:26]} 18. Nf5 {[%emt 0:03:43]} c6 {[%emt 0:04:15]} 19. Nc3 {[%emt 0:04:49]} Qc7 {[%emt 0:08:01]} 20. Qf4 {[%emt 0:03:39]} Ne5 {[%emt 0:09:11]} 21. d4 {[%emt 0:01:07]} Nf7 {[%emt 0:00:09]} 22. Nh4 {[%emt 0:13:54]} Bh5 {[%emt 0:05:01]} 23. Qd2 {[%emt 0:06:24]} b5 {[%emt 0:03:47]} 24. Qd3 {[%emt 0:05:29]} Ng5 {[%emt 0:03:08]} 25. Nf3 {[%emt 0:04:07]} Bxf3 {[%emt 0:02:35]} 26. gxf3 {[%emt 0:00:30]} Nxh3+ {[%emt 0:00:09]} 27. Kh2 {[%emt 0:02:02]} Ng5 {[%emt 0:00:10]} 28. f4 {[%emt 0:00:15]} Nf7 {[%emt 0:02:21]} 29. d5 {[%emt 0:02:29]} b4 {[%emt 0:01:16]} 30. Nd1 {[%emt 0:00:06]} cxd5 {[%emt 0:01:48]} 31. exd5 {[%emt 0:00:03]} Rac8 {[%emt 0:00:21]} 32. Ne3 {[%emt 0:00:35]} Nh6 {[%emt 0:01:35]} 33. Kg2 {[%emt 0:01:54]} Qd7 {[%emt 0:05:38]} 34. Qxa6 {[%emt 0:01:26]} Nf5 {[%emt 0:00:22]} 35. Qd3 {[%emt 0:00:34]} Nxe3+ {[%emt 0:07:45]} 36. Rxe3 {[%emt 0:00:02]} Rxe3 {[%emt 0:00:14]} 37. Qxe3 {[%emt 0:00:01]} Qf5 {[%emt 0:00:07]} 38. Qe6+ {[%emt 0:01:47]} Qxe6 {[%emt 0:00:04]} 39. dxe6 {[%emt 0:00:02]} Rxc2+ {[%emt 0:00:03]} 40. Kf3 {[%emt 0:00:43]} Rxb2 {[%emt 0:00:17]} 41. Ra1 {[%emt 0:30:53]} Rxb3+ {[%emt 0:30:10]} 42. Ke2 {[%emt 0:00:30]} Rxg3 {[%emt 0:01:00]} 43. Ra8 {[%emt 0:00:08]} Ra3 {[%emt 0:00:03]} 0-1

[Event "Schachfestival Open-A 2018"]
[Site "Lueneburg"]
[Date "2018.07.07"]
[Round "3"]
[White "Stabolewski, Andreas"]
[Black "Fabregas, Oliver"]
[Result "1/2-1/2"]
[ECO "A05"]
[WhiteElo "2129"]
[BlackElo "1955"]
[Annotator "NA"]
[PlyCount "81"]
[EventDate "2018.07.06"]
[EventType "swiss"]
[EventCountry "GER"]
[SourceTitle "playchess.com"]
[Source "ChessBase"]
[SourceQuality "1"]
[TimeControl "40/5400+30:1800+30"]

1. Nf3 {[%emt 0:00:00]} Nf6 {[%emt 0:00:00]} 2. c4 {[%emt 0:00:10]} b6 {[%emt 0:00:02]} 3. Nc3 {[%emt 0:02:28]} Bb7 {[%emt 0:00:17]} 4. d4 {[%emt 0:00:37]} g6 {[%emt 0:01:45]} 5. d5 {[%emt 0:01:42]} Bg7 {[%emt 0:06:58]} 6. e4 {[%emt 0:00:41]} d6 {[%emt 0:03:10]} 7. Be2 {[%emt 0:04:26]} O-O {[%emt 0:02:42]} 8. O-O {[%emt 0:00:39]} c5 {[%emt 0:03:37]} 9. Bf4 {[%emt 0:04:59]} Nh5 {[%emt 0:03:30]} 10. Be3 {[%emt 0:00:58]} a6 {[%emt 0:04:10]} 11. Qd2 {[%emt 0:02:13]} Qc7 {[%emt 0:06:18]} 12. Rad1 {[%emt 0:03:13]} Nd7 {[%emt 0:00:31]} 13. Bh6 {[%emt 0:10:31]} Rad8 {[%emt 0:07:57]} 14. Bxg7 {[%emt 0:01:17]} Kxg7 {[%emt 0:00:12]} 15. Ng5 {[%emt 0:02:40]} Nhf6 {[%emt 0:02:41]} 16. f4 {[%emt 0:00:47]} Kg8 {[%emt 0:07:02]} 17. h4 {[%emt 0:19:28]} h6 {[%emt 0:08:35]} 18. Nh3 {[%emt 0:01:04]} Kg7 {[%emt 0:02:14]} 19. a4 {[%emt 0:01:38]} Rfe8 {[%emt 0:06:09]} 20. Bf3 {[%emt 0:13:01]} Bc8 {[%emt 0:03:15]} 21. g4 {[%emt 0:01:29]} Nf8 {[%emt 0:04:36]} 22. f5 {[%emt 0:01:25]} N6d7 {[%emt 0:02:28]} 23. g5 {[%emt 0:03:41]} hxg5 {[%emt 0:06:47]} 24. Nxg5 {[%emt 0:04:17]} Ne5 {[%emt 0:01:56]} 25. Be2 {[%emt 0:01:23]} f6 {[%emt 0:05:02]} 26. h5 {[%emt 0:10:10]} fxg5 {[%emt 0:03:08]} 27. hxg6 {[%emt 0:01:38]} Nfd7 {[%emt 0:02:24]} 28. Qxg5 {[%emt 0:00:29]} Nf6 {[%emt 0:00:23]} 29. Kf2 {[%emt 0:01:21]} Rh8 {[%emt 0:00:20]} 30. Rh1 {[%emt 0:00:33]} Rdg8 {[%emt 0:01:19]} 31. Rh7+ {[%emt 0:03:46]} Nxh7 {[%emt 0:02:38]} 32. gxh7+ {[%emt 0:00:07]} Kf8 {[%emt 0:00:22]} 33. hxg8=Q+ {[%emt 0:00:31]} Rxg8 {[%emt 0:00:02]} 34. Qh6+ {[%emt 0:01:06]} Ke8 {[%emt 0:01:32]} 35. Qh7 {[%emt 0:01:21]} Rf8 {[%emt 0:01:09]} 36. Qg7 {[%emt 0:00:25]} Qd8 {[%emt 0:00:49]} 37. Rh1 {[%emt 0:00:33]} Kd7 {[%emt 0:00:29]} 38. Rh7 {[%emt 0:00:53]} Rf7 {[%emt 0:00:32]} 39. Qh6 {[%emt 0:00:48]} Rxh7 {[%emt 0:00:52]} 40. Qxh7 {[%emt 0:00:03]} Qf8 {[%emt 0:00:28]} 41. Bf1 1/2-1/2

[Event "Schachfestival Open-A 2018"]
[Site "Lueneburg"]
[Date "2018.07.07"]
[Round "3"]
[White "Bajorski, Marius"]
[Black "Kardoeus, David"]
[Result "0-1"]
[ECO "B33"]
[WhiteElo "2060"]
[BlackElo "2188"]
[Annotator "NA"]
[PlyCount "62"]
[EventDate "2018.07.06"]
[EventType "swiss"]
[EventCountry "GER"]
[SourceTitle "playchess.com"]
[Source "ChessBase"]
[SourceQuality "1"]
[TimeControl "40/5400+30:1800+30"]

1. e4 {[%emt 0:00:00]} c5 {[%emt 0:00:02]} 2. Nf3 {[%emt 0:00:00]} Nc6 {[%emt 0:00:22]} 3. d4 {[%emt 0:00:00]} cxd4 {[%emt 0:00:09]} 4. Nxd4 {[%emt 0:00:00]} Nf6 {[%emt 0:00:26]} 5. Nc3 {[%emt 0:00:00]} e5 {[%emt 0:00:25]} 6. Ndb5 {[%emt 0:00:16]} d6 {[%emt 0:00:17]} 7. Bg5 {[%emt 0:01:01]} a6 {[%emt 0:00:16]} 8. Na3 {[%emt 0:00:04]} b5 {[%emt 0:00:18]} 9. Nd5 {[%emt 0:00:09]} Be7 {[%emt 0:00:42]} 10. Bxf6 {[%emt 0:00:05]} Bxf6 {[%emt 0:00:08]} 11. c3 {[%emt 0:00:14]} O-O {[%emt 0:01:10]} 12. Nc2 {[%emt 0:04:05]} Bg5 {[%emt 0:01:20]} 13. a4 {[%emt 0:00:32]} bxa4 {[%emt 0:00:50]} 14. Rxa4 {[%emt 0:00:04]} Rb8 {[%emt 0:01:17]} 15. Ncb4 {[%emt 0:02:57]} Nxb4 {[%emt 0:06:12]} 16. Nxb4 {[%emt 0:03:07]} Bb7 {[%emt 0:03:36]} 17. Nxa6 {[%emt 0:08:13]} Bxa6 {[%emt 0:02:09]} 18. Rxa6 {[%emt 0:02:34]} Rxb2 {[%emt 0:01:18]} 19. Rxd6 {[%emt 0:02:19]} Qb8 {[%emt 0:01:44]} 20. Qd5 {[%emt 0:05:48]} Bd2+ {[%emt 0:29:14]} 21. Qxd2 {[%emt 0:01:07]} Rxd2 {[%emt 0:00:17]} 22. Rxd2 {[%emt 0:00:02]} Qb1+ {[%emt 0:00:13]} 23. Ke2 {[%emt 0:00:46]} Qxe4+ {[%emt 0:00:07]} 24. Kd1 {[%emt 0:00:02]} Qb1+ {[%emt 0:00:34]} 25. Ke2 {[%emt 0:00:02]} Rb8 {[%emt 0:03:09]} 26. f3 {[%emt 0:01:00]} e4 {[%emt 0:00:10]} 27. fxe4 {[%emt 0:04:43]} Qxe4+ {[%emt 0:00:24]} 28. Kf2 {[%emt 0:00:06]} Qf4+ {[%emt 0:02:28]} 29. Ke1 {[%emt 0:05:15]} Rb1+ {[%emt 0:00:05]} 30. Ke2 {[%emt 0:00:04]} Qe4+ {[%emt 0:00:06]} 31. Kf2 {[%emt 0:00:07]} Qe1+ {[%emt 0:00:05]} 0-1

[Event "Schachfestival Open-A 2018"]
[Site "Lueneburg"]
[Date "2018.07.07"]
[Round "3"]
[White "Hesse, Henrik"]
[Black "Hess, Christian Mathias"]
[Result "1/2-1/2"]
[ECO "A11"]
[WhiteElo "2057"]
[BlackElo "2243"]
[Annotator "NA"]
[PlyCount "99"]
[EventDate "2018.07.06"]
[EventType "swiss"]
[EventCountry "GER"]
[SourceTitle "playchess.com"]
[Source "ChessBase"]
[SourceQuality "1"]
[TimeControl "40/5400+30:1800+30"]

1. c4 {[%emt 0:00:00]} c6 {[%emt 0:00:00]} 2. g3 {[%emt 0:00:16]} Nf6 {[%emt 0:00:41]} 3. Nf3 {[%emt 0:02:42]} g6 {[%emt 0:01:16]} 4. b3 {[%emt 0:03:21]} Bg7 {[%emt 0:00:35]} 5. Bb2 {[%emt 0:00:22]} O-O {[%emt 0:00:28]} 6. Bg2 {[%emt 0:00:24]} d6 {[%emt 0:00:53]} 7. d4 {[%emt 0:08:59]} Nbd7 {[%emt 0:01:14]} 8. O-O {[%emt 0:03:02]} Re8 {[%emt 0:17:58]} 9. Re1 {[%emt 0:10:41]} e5 {[%emt 0:08:36]} 10. dxe5 {[%emt 0:22:29]} dxe5 {[%emt 0:02:43]} 11. Nxe5 {[%emt 0:01:15]} Ng4 {[%emt 0:07:29]} 12. Nxc6 {[%emt 0:00:20]} bxc6 {[%emt 0:04:29]} 13. Bxg7 {[%emt 0:00:15]} Kxg7 {[%emt 0:01:21]} 14. Qd4+ {[%emt 0:00:16]} Qf6 {[%emt 0:18:33]} 15. Qxf6+ {[%emt 0:01:48]} Ngxf6 {[%emt 0:00:09]} 16. Bxc6 {[%emt 0:00:20]} Rb8 {[%emt 0:00:06]} 17. Nc3 {[%emt 0:02:40]} Bb7 {[%emt 0:01:02]} 18. Bxb7 {[%emt 0:05:05]} Rxb7 {[%emt 0:00:19]} 19. e4 {[%emt 0:06:07]} Ne5 {[%emt 0:04:19]} 20. Kg2 {[%emt 0:01:04]} Rd7 {[%emt 0:06:54]} 21. Nd5 {[%emt 0:08:01]} Nd3 {[%emt 0:01:37]} 22. Red1 {[%emt 0:00:25]} Nc5 {[%emt 0:01:25]} 23. Nxf6 {[%emt 0:00:40]} Kxf6 {[%emt 0:00:38]} 24. Rxd7 {[%emt 0:00:12]} Nxd7 {[%emt 0:00:11]} 25. f3 {[%emt 0:00:54]} Ne5 {[%emt 0:03:29]} 26. Rd1 {[%emt 0:00:11]} Re6 {[%emt 0:03:29]} 27. Rd2 {[%emt 0:04:15]} g5 {[%emt 0:00:45]} 28. f4 {[%emt 0:01:46]} gxf4 {[%emt 0:03:20]} 29. gxf4 {[%emt 0:00:13]} Nxc4 {[%emt 0:00:56]} 30. bxc4 {[%emt 0:01:45]} Rxe4 {[%emt 0:00:06]} 31. Rd6+ {[%emt 0:02:56]} Kf5 {[%emt 0:03:07]} 32. Rd7 {[%emt 0:01:22]} Re2+ {[%emt 0:02:37]} 33. Kf3 {[%emt 0:03:42]} Rxa2 {[%emt 0:00:42]} 34. Rxf7+ {[%emt 0:00:13]} Kg6 {[%emt 0:00:57]} 35. Rc7 {[%emt 0:04:01]} a5 {[%emt 0:02:11]} 36. h4 {[%emt 0:03:42]} a4 {[%emt 0:00:46]} 37. Ra7 {[%emt 0:00:20]} a3 {[%emt 0:01:17]} 38. Ke4 {[%emt 0:00:08]} Re2+ {[%emt 0:00:36]} 39. Kd5 {[%emt 0:00:42]} a2 {[%emt 0:00:15]} 40. c5 {[%emt 0:01:13]} Kf5 {[%emt 0:01:10]} 41. c6 {[%emt 0:07:39]} Kxf4 {[%emt 0:08:19]} 42. c7 {[%emt 0:08:59]} Rc2 {[%emt 0:05:42]} 43. Kd6 {[%emt 0:01:14]} Rd2+ {[%emt 0:00:28]} 44. Ke6 {[%emt 0:00:22]} Rc2 {[%emt 0:03:05]} 45. Ra4+ {[%emt 0:11:27]} Kg3 {[%emt 0:00:26]} 46. Kd7 {[%emt 0:00:23]} Rd2+ {[%emt 0:00:38]} 47. Kc6 {[%emt 0:01:58]} Rc2+ {[%emt 0:00:37]} 48. Kd6 {[%emt 0:01:35]} Rd2+ {[%emt 0:00:36]} 49. Ke6 {[%emt 0:00:52]} Rc2 {[%emt 0:02:03]} 50. Kd6 {[%emt 0:00:58]} 1/2-1/2

[Event "Schachfestival Open-A 2018"]
[Site "Lueneburg"]
[Date "2018.07.07"]
[Round "3"]
[White "Litfin, Boris"]
[Black "Thorsbro, Peter"]
[Result "0-1"]
[ECO "C44"]
[WhiteElo "2007"]
[BlackElo "2116"]
[Annotator "NA"]
[PlyCount "60"]
[EventDate "2018.07.06"]
[EventType "swiss"]
[EventCountry "GER"]
[SourceTitle "playchess.com"]
[Source "ChessBase"]
[SourceQuality "1"]
[TimeControl "40/5400+30:1800+30"]

1. e4 {[%emt 0:06:07]} e5 {[%emt 0:04:04]} 2. Nf3 {[%emt 0:01:00]} Nc6 {[%emt 0:04:20]} 3. d4 {[%emt 0:00:55]} exd4 {[%emt 0:00:30]} 4. Nxd4 {[%emt 0:00:03]} Bb4+ {[%emt 0:00:11]} 5. c3 {[%emt 0:00:44]} Bc5 {[%emt 0:00:05]} 6. Be3 {[%emt 0:00:43]} Bb6 {[%emt 0:00:08]} 7. Bc4 {[%emt 0:02:15]} d6 {[%emt 0:08:33]} 8. O-O {[%emt 0:01:40]} Nge7 {[%emt 0:02:40]} 9. Bg5 {[%emt 0:17:44]} Ne5 {[%emt 0:23:37]} 10. Bb3 {[%emt 0:03:21]} h6 {[%emt 0:00:47]} 11. Bh4 {[%emt 0:09:43]} g5 {[%emt 0:01:04]} 12. Bg3 {[%emt 0:02:36]} Bg4 {[%emt 0:07:09]} 13. Qc2 {[%emt 0:03:14]} Qd7 {[%emt 0:06:02]} 14. a4 {[%emt 0:02:29]} a6 {[%emt 0:02:45]} 15. a5 {[%emt 0:00:27]} Ba7 {[%emt 0:00:05]} 16. Kh1 {[%emt 0:03:28]} N7g6 {[%emt 0:07:08]} 17. Nd2 {[%emt 0:17:11]} O-O-O {[%emt 0:01:30]} 18. Nf5 {[%emt 0:03:08]} Be2 {[%emt 0:08:11]} 19. Ba4 {[%emt 0:04:17]} c6 {[%emt 0:01:24]} 20. Rfe1 {[%emt 0:01:45]} Bd3 {[%emt 0:00:15]} 21. Qd1 {[%emt 0:01:05]} h5 {[%emt 0:00:24]} 22. Nf3 {[%emt 0:02:39]} h4 {[%emt 0:03:35]} 23. Bxe5 {[%emt 0:01:11]} dxe5 {[%emt 0:00:09]} 24. Qb3 {[%emt 0:01:49]} h3 {[%emt 0:03:24]} 25. Nxg5 {[%emt 0:06:38]} hxg2+ {[%emt 0:03:11]} 26. Kg1 {[%emt 0:01:07]} Nf4 {[%emt 0:01:40]} 27. Rad1 {[%emt 0:01:59]} Rdg8 {[%emt 0:02:30]} 28. Rxd3 {[%emt 0:02:29]} Rxg5 {[%emt 0:02:15]} 29. Bxc6 {[%emt 0:01:45]} bxc6 {[%emt 0:01:02]} 30. Qxf7 {[%emt 0:00:46]} Bxf2+ 0-1